Cogmind - Beta 14 @@@ ROGUE MODE // 2024.09.18 @ 14:08:17 Player: Dull Result: Destroyed by S-10 Pest with Light Assault Rifle Performance ------------- Evolutions (0) 0 Regions Visited (2) 400 Robots Destroyed (36) 180 Value Destroyed (1104) 1104 Prototype IDs (0) 0 Alien Tech Used (0) 0 Bonus (0) 0 TOTAL SCORE: 1684 Bonus ------- None Cogmind --------- Core Integrity 0/250 Matter 300/300 Energy 246/250 System Corruption 0% Temperature Cool (2) Movement Treading (160) Location -10/Subcaves Parts ------- > --- POWER (1) -------- Ion Engine > --- PROPULSION (2) --- Spiked Treads Spiked Treads > --- UTILITY (2) ------ Scrap Shield > --- WEAPON (2) ------- Subdweller Beam Cannon Barrage Gun > --- INVENTORY (5) ---- Ion Engine Light Treads Riot Gun Battle Rifle Makeshift Axe Peak State ------------ > --- POWER ------------ Ion Engine > --- PROPULSION ------- Spiked Treads Spiked Treads > --- UTILITY ---------- Scrap Shield > --- WEAPON ----------- Subdweller Beam Cannon Barrage Gun > --- INVENTORY -------- Ion Engine Light Treads Riot Gun Battle Rifle Makeshift Axe [Rating: 15] Favorites ----------- Power Ion Engine Engine Ion Engine Propulsion Light Treads Treads Light Treads Leg Aluminum Leg Utility Scrap Shield Device Improved Terrain Scanner Storage High-capacity Storage Unit Protection Scrap Shield Weapon Light Cannon Energy Gun Small Laser Energy Cannon Subdweller Beam Cannon Ballistic Gun Light Assault Rifle Ballistic Cannon Light Cannon Build | -11 -10 -10 ------- Run | Yrd Mat Sub Slots Evolved . | . . . Power . | . . . Propulsion . | . . . Utility . | . . . Weapon . | . . . Parts Attached 30 | 3 10 17 Power 8 | . 4 4 Engine 8 | . 4 4 Core . | . . . Reactor . | . . . Propulsion 8 | 2 2 4 Treads 8 | 2 2 4 Leg . | . . . Wheel . | . . . Hover . | . . . Flight . | . . . Utility 5 | 1 3 1 Device 1 | 1 . . Storage 2 | . 2 . Processor . | . . . Hackware . | . . . Protection 2 | . 1 1 Artifact . | . . . Weapon 9 | . 1 8 Energy Gun . | . . . Energy Cannon 1 | . . 1 Ballistic Gun 5 | . . 5 Ballistic Cannon 3 | . 1 2 Launcher . | . . . Special Weapon . | . . . Impact Weapon . | . . . Slashing Weapon . | . . . Piercing Weapon . | . . . Special Melee Weapon . | . . . Unidentified Prototypes . | . . . Parts Lost 5 | . 2 3 Power 2 | . . 2 Propulsion 2 | . 1 1 Utility . | . . . Weapon 1 | . 1 . Highest Loss Streak 1 | . 1 1 To Critical Strikes 1 | . . 1 Average Slot Usage (%) 91 | . 100 86 Engine 13 | . 14 13 Treads 28 | . 28 28 Storage 6 | . 14 1 Protection 13 | . 11 13 Energy Gun 1 | . 4 . Energy Cannon 2 | . . 3 Ballistic Gun 13 | . 14 12 Ballistic Cannon 11 | . 9 11 Peak Build Rating 15 | 9 9 15 Average Rating 10 | 7 8 11 On Entrance 8 | 6 9 9 Naked Turns . | . . . Heaviest Build 50 | 11 50 50 Greatest Support 40 | 40 40 40 Greatest Overweight (x) 1 | . 1 1 Average Overweight (x) . | . . . Largest Inventory Capacity 20 | 8 20 20 Average Capacity 10 | 8 16 6 Most Carried 20 | 7 20 20 Average Carried 9 | 4 13 6 Final Capacity 20 | 8 20 5 Final Carried 20 | 3 20 5 Class Distribution -------------------- 100% | Mutant Dominant Class ---------------- Mutant | -10/Materials Mutant | -10/Subcaves Resources | -11 -10 -10 ----------- Run | Yrd Mat Sub Matter Collected 1359 | 232 309 818 Remotely . | . . . Salvage Created 1098 | 14 573 511 Parts 83 | 3 38 42 Haulers Intercepted 2 | . 2 . Recyclers Shooed 1 | . 1 . Parts Field Recycled . | . . . Retrieved Matter . | . . . Parts Self-Destructed 14 | . . 14 Prevented . | . . . Kills | -11 -10 -10 ------- Run | Yrd Mat Sub Combat Hostiles Destroyed 30 | . 13 17 Guns 16 | . 7 9 Cannons 14 | . 6 8 Classes Destroyed 8 | 1 5 2 Tunneler 1 | 1 . . Hauler 2 | . 2 . Operator 1 | . 1 . Watcher 2 | . 2 . Swarmer 5 | . 1 4 Grunt 12 | . 12 . Sentry 1 | . . 1 Subdweller 12 | . . 12 Best Kill Streak 3 | 1 2 3 Combat Bots Only 3 | . 2 3 Max Kills in Single Turn 1 | 1 1 1 Gunslinging . | . . . Exploded . | . . . Melee . | . . . Uniques/NPCs Destroyed . | . . . Combat | -11 -10 -10 -------- Run | Yrd Mat Sub Hostile Shots Fired 151 | . 60 91 Missed 34 | . 14 20 Damage Taken 2001 | . 562 1439 Core 250 | . 72 178 Absorbed by Shields . | . . . Redirected to Shielding 24 | . 10 14 Core Remaining (%) 100 | 100 . . Volleys Fired 196 | 2 72 122 Largest 2 | 2 2 2 Hottest 108 | 60 60 108 Shots Fired 387 | 4 143 240 Gun 222 | 4 104 114 Cannon 165 | . 39 126 Launcher . | . . . Special . | . . . Kinetic 334 | 2 111 221 Thermal 53 | 2 32 19 Explosive . | . . . Electromagnetic . | . . . Robot Hit Streak 32 | 2 10 32 Robot Miss Streak 3 | 1 3 3 Penetration Max . | . . . Secondary Targets . | . . . Shots Hit Robots 210 | 2 85 123 Core Hits 69 | 1 38 30 Critical Kills . | . . . Critical Parts Destroyed . | . . . Critical Strikes 6 | . 2 4 Blast 6 | . 2 4 Melee Attacks . | . . . Impact . | . . . Slashing . | . . . Piercing . | . . . Sneak Attacks . | . . . Combat Hostiles . | . . . Follow-up Attacks . | . . . Damage Inflicted 2664 | 21 1010 1633 Guns 1308 | 21 610 677 Cannons 1353 | . 400 953 Explosions . | . . . Melee . | . . . Ramming 3 | . . 3 Kinetic 2309 | . 737 1572 Thermal 352 | 21 273 58 Explosive . | . . . Electromagnetic . | . . . Impact . | . . . Slashing . | . . . Piercing . | . . . Highest Corruption . | . . . Average Corruption . | . . . Corruption Purged . | . . . Corruption Blocked . | . . . Overload Shots . | . . . Overflow Damage 13 | . 13 . Projectiles 13 | . 13 . Explosions . | . . . Melee . | . . . Knockbacks 17 | . 8 9 Impact . | . . . Kinetic 17 | . 8 9 Secondary . | . . . Self-Inflicted Damage . | . . . Shots . | . . . Rammed 1 | . . 1 Targets Rammed 1 | . . 1 Kicked . | . . . Crushed . | . . . Highest Temperature 103 | 20 103 56 Average Temperature 24 | 15 24 22 Received Heat Transfer 546 | . 306 240 Siege Activations . | . . . Robots Corrupted . | . . . Combat Hostiles . | . . . Parts Fried . | . . . Impact Corruptions . | . . . Robots Melted . | . . . Combat Hostiles . | . . . Parts Melted 2 | . 1 1 Heat Transferred 724 | 50 600 74 Parts Sabotaged . | . . . Parts Stolen . | . . . Parts Stripped . | . . . Power Chain Reactions . | . . . Alert | -11 -10 -10 ------- Run | Yrd Mat Sub Peak Influence 205 | 5 205 . Initial 3 | . 3 . Average 56 | 4 57 . Maximum Alert Level 1 | . 1 . Low Security (%) 99 | 100 98 . Level 1 . | . 1 . Level 2 . | . . . Level 3 . | . . . Level 4 . | . . . Level 5 . | . . . High Security . | . . . Max Security . | . . . Squads Dispatched 2 | . 2 . Investigation 1 | . 1 . Extermination . | . . . Reinforcement 1 | . 1 . Assault . | . . . Garrison . | . . . Intercept . | . . . Searches Triggered . | . . . Construction Impeded . | . . . Haulers Reinforced . | . . . Active Scanning Responses . | . . . Cargo Convoy Interrupts . | . . . Stealth | -11 -10 -10 --------- Run | Yrd Mat Sub Distress Signals 1 | . 1 . Communications Jammed . | . . . Distress Signals . | . . . Times Spotted 48 | . 30 18 Peak Tracking Total 6 | . 3 6 Tactical Retreats 4 | . 4 . Traps | -11 -10 -10 ------- Run | Yrd Mat Sub Traps Triggered 4 | . . 4 Indirectly . | . . . Trap Hack Attempts . | . . . Triggered . | . . . Disarmed . | . . . Reprogrammed . | . . . Reused . | . . . Traps Extracted . | . . . Installed . | . . . Triggered . | . . . Machines | -11 -10 -10 ---------- Run | Yrd Mat Sub Machines Disabled 1 | . 1 . Max in Single Turn 1 | . 1 . Machines Repaired . | . . . Machines Dismantled . | . . . Machines Sabotaged . | . . . Overloaded Fab Kills . | . . . Hacking | -11 -10 -10 --------- Run | Yrd Mat Sub Machines Accessed 11 | . 10 1 Terminals 7 | . 7 . Fabricators . | . . . Repair Stations 1 | . 1 . Recycling Units 2 | . 2 . Scanalyzers . | . . . Garrison Access . | . . . Total Hacks 36 | . 31 5 Successful 19 | . 14 5 Failed 16 | . 16 . Catastrophic . | . . . Database Lockouts 1 | . 1 . Manual 26 | . 26 . Terminals 26 | . 26 . Fabricators . | . . . Repair Stations 1 | . 1 . Recycling Units 4 | . 4 . Scanalyzers . | . . . Garrison Access . | . . . Terminal Hacks 9 | . 4 5 Record 5 | . . 5 Robot Analysis 3 | . 3 . Unreport Threat 1 | . 1 . Fabricator Hacks . | . . . Repair Station Hacks . | . . . Recycling Unit Hacks . | . . . Scanalyzer . | . . . Garrison Access Hacks . | . . . Unauthorized Hacks 10 | . 10 . Terminals 7 | . 7 . Assimilate 1 | . 1 . Botnet 6 | . 6 . Fabricators . | . . . Repair Stations . | . . . Recycling Units 3 | . 3 . Reject 1 | . 1 . Mask 2 | . 2 . Scanalyzers . | . . . Garrison Access . | . . . Data Cores Recovered . | . . . Used . | . . . Hacking Detections 9 | . 9 . Full Trace Events 1 | . 1 . Feedback Events . | . . . Feedback Blocked . | . . . Robot Schematics Acquired . | . . . Robots Built . | . . . Authchips . | . . . Time . | . . . Total Robot Build Rating . | . . . Part Schematics Acquired . | . . . Parts Built . | . . . Authchips . | . . . Time . | . . . Total Part Build Rating . | . . . Parts Repaired . | . . . Time . | . . . Parts Recycled . | . . . Recycled Matter . | . . . Retrieved Matter . | . . . Retrieved Components . | . . . Parts Scanalyzed . | . . . Part Schematics Acquired . | . . . Parts Damaged . | . . . Bothacking | -11 -10 -10 ------------ Run | Yrd Mat Sub Used RIF Installer . | . . . Robots Hacked . | . . . Non-combat . | . . . Combat . | . . . Robot Hacks Applied . | . . . Relay Couplers Released . | . . . Fabnet Peak Effective % . | . . . Robots Rewired . | . . . Allies Hacked . | . . . Hacks Repelled . | . . . Allies | -11 -10 -10 -------- Run | Yrd Mat Sub Total Allies 1 | . 1 . Largest Group 1 | . 1 . Highest-Rated Group 10 | . 10 . Highest-Rated Ally 10 | . 10 . Total Orders . | . . . Ally Attacks . | . . . Total Damage . | . . . Kills . | . . . Allies Corrupted . | . . . Allies Melted . | . . . Intel | -11 -10 -10 ------- Run | Yrd Mat Sub Robot Analysis Total 2 | . 2 . Derelict Logs Recovered 2 | . . 2 Drone Launches . | . . . Drone Recoveries . | . . . Exploration | -11 -10 -10 ------------- Run | Yrd Mat Sub Turns Passed 5907 | 32 2275 3600 Spaces Moved 2672 | 14 824 1834 Core . | . . . Treads 2667 | 9 824 1834 Legs 5 | 5 . . Wheels . | . . . Hover . | . . . Flight . | . . . Fastest Speed 120 | 120 160 160 Average Speed 180 | 145 215 164 Slowest Speed 240 | 160 240 240 Overloaded Moves . | . . . Propulsion Burnouts . | . . . Robots Hopped . | . . . Cave-ins Triggered . | . . . Exploration Rate (%) 59 | 2 100 77 Regions Visited 2 Branch Regions 1 Pre-discovered Areas 2 | . . 2 Known Exits Taken . | . . . Unknown Exits Taken 2 | 1 1 . Scrap Searched 10 | . . 10 Spaces Dug . | . . . Terrain Destroyed 2 | . . 2 Melee . | . . . Projectile 2 | . . 2 AOE . | . . . Terrain Rammed . | . . . Walls Destroyed . | . . . Machines Disabled . | . . . Actions | -11 -10 -10 --------- Run | Yrd Mat Sub Total 3401 | 23 1197 2181 Wait 428 | . 254 174 Move 2670 | 13 823 1834 Hop . | . . . Pick Up 33 | 1 26 6 Fast Attach 2 | 1 . 1 Attach 5 | . 2 3 Detach . | . . . Swap 23 | 2 8 13 Drop 29 | 4 12 13 Fire 196 | 2 72 122 Melee . | . . . Ram . | . . . Kick . | . . . Crush 1 | . . 1 Escape Stasis . | . . . Rewire . | . . . Trap . | . . . Miscellaneous 14 | . . 14 Route ------- -11/Scrapyard -10/Materials (discovered 5 exits: [*Mat x3] / [*Min] / *Sub) -10/Subcaves (discovered 3 exits: [*Mat x2] / Rec) History --------- Turn | Location | Event 1 | -11/Scrapyard | Discovered new exit (range 3) 33 | -11/Scrapyard | Entered Materials 307 | -10/Materials | Build established: Mutant 510 | -10/Materials | Discovered new exit (range 3) 901 | -10/Materials | Discovered new exit (range 10) 1496 | -10/Materials | Central database locked down 1590 | -10/Materials | Discovered new exit (range 5) 1914 | -10/Materials | Discovered new exit (range 12) 2279 | -10/Materials | Discovered new exit (range 13) 2308 | -10/Materials | Entered Subcaves 2349 | -10/Subcaves | Visited Clippyterm 2356 | -10/Subcaves | Learned location of Extension (-5) 2356 | -10/Subcaves | Learned Research security intel 2435 | -10/Subcaves | Core integrity fell below 50% 2674 | -10/Subcaves | Shifting Twisted Machinery released Sub. Laser 2676 | -10/Subcaves | Shifting Twisted Machinery released Scrap Shield 2779 | -10/Subcaves | Discovered new exit (range 5) 3151 | -10/Subcaves | Ambushed by Subdweller buried in earth 4009 | -10/Subcaves | Discovered new exit (range 14) 4109 | -10/Subcaves | Shifting Twisted Machinery released Riot Gun 4109 | -10/Subcaves | Shifting Twisted Machinery released Sub. Laser 4456 | -10/Subcaves | Core integrity fell below 20% 4615 | -10/Subcaves | Curiously followed by a Cobbler waking with a query about "LVR3C" 5408 | -10/Subcaves | Shifting Twisted Machinery released Riot Gun 5409 | -10/Subcaves | A swath of the cavern ceiling suddenly collapsed 5858 | -10/Subcaves | Identified exit to Recycling 5908 | -10/Subcaves | Destroyed by S-10 Pest with Light Assault Rifle Last Messages --------------- 05705_ Found Shrapnel Trap. 05705_ Found Spk. Treads. 05705_ Found 45 Matter. 05706_ Acquired 31 matter. 05708_ Dropped Lgt. Treads. 05709_ Searching scrap... 05709_ Found Sub. Monowheel. 05709_ Found Sub. Beam Cannon. 05709_ Found 32 Matter. 05710_ Acquired 10 matter. 05714_ Searching scrap... 05714_ Found Sub. Laser. 05714_ Found 54 Matter. 05717_ Searching scrap... 05717_ Found Sub. Laser. 05717_ Found Mak. Sword. 05717_ Found 54 Matter. 05726_ WF-17H(O) collects matter. 05858_ Acquired derelict log, extracted data. Loading 1 Recycling entrance... Map ----- +----------------------------------------------------+ | ?????????????????????????????????????????????????# | | ????????????????????????????????????????????????## | | ????????????????????????????????????????????????# | | ????????????????????????????????????????????????# | | ????????????????????????????????????????????????# | | ????????????????????????????????????????????????# | | ????????????????????????????????????????????????# | | ????????????????????????????????????????????????# | | ??????????????????#?????????????????????????????# | | ?????????????????# ?????????????????????????????## | | ???????????????## ??????????????????????????????? | | ???????????????# ???##?????????????????????????? | | ??????????????## ##? ##????????????????????????? | | ??????????????# ## #????????????????????????? | | ??????????????# ?????????????????????????? | | ??????????????? ?????????????????????????? | | ???????????????# ??????????????????????????? | | ???????????????# #????????#?????????????????? | | ???????????????# #??????? ####??????????????? | | ????????????????# ##????? ##?????????????? | | ???????????????## ##???# #?????????????? | | ??????????????## #### ## ?????????? | | ??????????????# s ?????????? | | ??????????????# ????>?????? | | ??????????????### #?????????????????? | | ????????????????## @ ###?#??????????????? | | ?????????????????# ### #??????????????? | | ????????????????## ## ###????????????? | | ????????????????# O # ## #????????????? | | ???????????????## ##????????????? | | ???????????????#< #???????###??? | | ????????????# # ## ########## #### | | ????????????# ## ## # ## ## # | | ????????????# # < #### #### #?# # | | ???????????#" ###< #??# #### #?# ## | | ???????????#"???# ??### #### ## | | ????????????????## ????## # ## #### | | ?????????????????# ?????## ##### ### | | ????????????????? ??????####???## | | ???????????????? ### ??????????????# # | | ????????????????#??# ??????????????# # | | ???????????????????## ??????????????# ### | | ????????????????????? ????????????### ##?# | | ?????????????????????????????????## #??# | | ?????????????????????????????????# ##??# | | ???????????????????????????????### ###?# # | | ??????????????????????????????## #?## # | | ??????????????????????????????# ##??#### | | ??????????????????????????????# #####??? | | ??????????????????????????????## ## ##?? | +----------------------------------------------------+ Best States ------------- Heat Dissipation 25 Energy Generation 15 Energy Capacity 250 Matter Stores 300 Matter Capacity 300 Sight Range 16 Terrain Scan Range 16 Terrain Scan Density 10 Armor Coverage 800 Core Shielding 20 Evasion (%) 40 Recoil Reduction 2 Item Schematics ----------------- None Robot Schematics ------------------ None Fabricated ------------ Nothing Alien Tech Used ----------------- None Achievements -------------- None Challenges ------------ None Game ------ Seed UltimateGyrokineticBeam Manual? 0 Play Time 00:27:41 Cumulative 108.2 hours Start 2024.09.18 @ 13:43:28 End 2024.09.18 @ 14:08:17 Sessions 1 Manual Loads 0 Difficulty Rogue Special Mode None Game No. 148 Rogue 148 Adventurer 0 Explorer 0 Win Type - Total 1 Types 1/0/0/0/0/0/0/0/0 Lore% 22 Gallery% 56 Achievement% 44 Wizard Run 0 Options --------- Layout 0 ASCII 0 Keyboard 0 Movement Mouse Keybinds 1 Fullscreen 1 Font 18/TerminusBold Map View 76x50 Zoom Use 0% Tactical HUD 1 Map Filters NONE Filters NONE Steam 1 RUN: f040401f-c5a6-4b41-98cc-57aafb2656f4